[Event "15th Tashkent Open Agzamov 2022"]
[Site "Tashkent"]
[Date "2022.05.09"]
[Round "8.1"]
[White "Sanal, Vahap"]
[Black "Indjic, Aleksandar"]
[Result "1/2-1/2"]
[ECO "C47"]
[WhiteElo "2575"]
[BlackElo "2621"]
[Annotator "TA"]
[PlyCount "92"]
[EventDate "2022.05.05"]
[EventType "swiss"]
[EventCountry "UZB"]
[SourceTitle "playchess.com"]
[Source "ChessBase"]
[SourceQuality "1"]
[TimeControl "5400+30"]

{[%evp 11,92,29,35,30,27,24,39,35,31,29,42,50,43,35,43,31,47,37,55,40,61,48,45,52,123,122,159,152,141,141,150,137,152,131,141,147,137,126,135,139,130,101,168,195,185,197,196,188,198,206,208,205,185,199,160,123,123,116,113,66,87,67,58,61,202,124,119,116,124,30,30,4,48,0,0,0,0,0,0,0,0,0,0]} 1. e4 {[%emt 0:00:03]} e5 {[%emt 0:01:18]} 2. Nf3 {[%emt 0:00:09]} Nf6 {[%emt 0:00:16]} 3. Nc3 {[%emt 0:00:17]} Nc6 {[%emt 0:01:21]} 4. d4 {[%emt 0:00:24]} Bb4 {[%emt 0:00:52]} 5. Nxe5 {[%emt 0:00:08]} Bxc3+ {[%emt 0:00:30]} 6. bxc3 {[%emt 0:00:07]} Qe7 $1 {[%emt 0:00:08]} 7. Nxc6 {[%emt 0:00:41] C47: Scotch Four Knights and Four Knights with 4 g3.} Qxe4+ {[%emt 0:00:21]} 8. Qe2 {[%emt 0:00:25]} dxc6 {[%emt 0:00:49]} 9. Qxe4+ {[%emt 0:03:48] White is slightly better.} Nxe4 {[%emt 0:00:22]} 10. c4 {[%emt 0:00:09]} Bf5 {[%emt 0:01:33] [#]} 11. f3 $146 {[%emt 0:06:55]} ({Predecessor:} 11. Be3 O-O-O 12. f3 Nd6 13. c5 Nb5 14. Bxb5 cxb5 15. Kd2 Rhe8 16. Rhe1 Re6 17. a3 {½-½ (30) Singh,G (2284)-Safin,S (2528) Aden 2002}) 11... Nf6 {[%emt 0:07:11][%cal Be4f6,Bf6d7,Bd7e5,Be5c4][%mdl 32]} 12. c3 {[%emt 0:08:44]} O-O-O {[%emt 0:00:16]} 13. Kf2 {[%emt 0:00:45]} Rde8 {[%emt 0:08:24]} 14. Bf4 {[%emt 0:05:03]} (14. g4 {is more complex.} Bc2 15. h4 h5 16. g5) 14... Nd7 {[%emt 0:01:55]} 15. a4 {[%emt 0:03:45]} h5 {[%emt 0:01:16]} 16. h4 {[%emt 0:00:40]} c5 {[%emt 0:02:37]} 17. a5 {[%emt 0:00:49]} cxd4 {[%emt 0:02:20]} (17... f6 $14) 18. cxd4 $16 {[%emt 0:00:07]} c5 {[%emt 0:00:51]} 19. d5 {[%emt 0:07:14]} Ne5 {[%emt 0:00:20]} 20. Ra3 {[%emt 0:00:19] Prevents Nd3+.} Re7 {[%emt 0:01:52]} 21. Be3 {[%emt 0:01:07][%cal Bf4e3,Be3c5,Bc5d6][%mdl 32]} Rhe8 {[%emt 0:02:14]} 22. Bxc5 {[%emt 0:28:34]} Rc7 {[%emt 0:00:05]} 23. Bd6 {[%emt 0:00:15]} Nxc4 {[%emt 0:00:20]} 24. Bxc7 {[%emt 0:00:07]} Nxa3 {[%emt 0:00:09]} 25. Bf4 {[%emt 0:01:24]} a6 {[%emt 0:04:31]} 26. Be2 {[%emt 0:02:53] Rc1+ is the strong threat.} Kd7 {[%emt 0:00:49]} (26... Nc2 $16 {was worth a try.}) 27. Rc1 $1 $18 {[%emt 0:01:27] Threatens to win with Rc7+.} Bc2 {[%emt 0:02:11]} 28. g4 $1 {[%emt 0:04:58]} hxg4 {[%emt 0:03:53]} 29. fxg4 {[%emt 0:00:03]} Re4 {[%emt 0:00:09]} 30. Be3 {[%emt 0:05:24] aiming for Bc5.} Kd6 {[%emt 0:02:14]} 31. Bf3 {[%emt 0:02:20]} Rc4 {[%emt 0:00:57] [#] Prevents Bc5+.} 32. h5 $1 {[%emt 0:00:08]} f6 {[%emt 0:02:08]} 33. h6 {[%emt 0:02:41]} gxh6 {[%emt 0:01:37]} 34. Bxh6 {[%emt 0:01:39] A strong pair of Bishops.} Nb5 {[%emt 0:00:20]} 35. Bf8+ {[%emt 0:02:59]} (35. Be2 $16 Rc8 {[#]} 36. Bd3 $1 {[%mdl 512]} (36. Bf4+ Kd7 $16)) 35... Kd7 $14 {[%emt 0:00:08]} 36. Re1 {[%emt 0:00:15]} Nd4 {[%emt 0:03:43]} 37. Bg2 {[%emt 0:01:42] Hoping for Re7+.} Ba4 {[%emt 0:03:36]} ({Black should try} 37... Nb5 $14) 38. Re7+ {[%emt 0:00:23]} Kc8 {[%emt 0:00:17]} 39. d6 {[%emt 0:02:18]} Bc6 {[%emt 0:01:28]} 40. Bf1 {[%emt 0:02:49] White is more active.} (40. Rc7+ $16 Kb8 41. Bxc6 Nxc6 42. Be7) 40... Rc3 $11 {[%emt 0:01:39]} 41. Rc7+ {[%emt 0:02:26]} Kb8 {[%emt 0:00:01]} (41... Kd8 $5 {[%cal Rd4e6]}) 42. Rh7 {[%emt 0:00:19]} (42. Rf7 $14 Rf3+ 43. Ke1) 42... Rf3+ {[%emt 0:00:26] The position is equal.} 43. Kg1 {[%emt 0:02:43]} Rg3+ {[%emt 0:00:43]} 44. Kf2 {[%emt 0:00:02]} Rf3+ {[%emt 0:00:11]} 45. Kg1 {[%emt 0:00:03] And now d7 would win.} Rg3+ {[%emt 0:02:22]} 46. Kf2 {[%emt 0:01:01]} Rf3+ $1 {[%emt 0:01:15] Weighted Error Value: White=0.13 (very precise) /Black=0.12 (very precise)} 1/2-1/2

[Event "15th Tashkent Open Agzamov 2022"]
[Site "Tashkent"]
[Date "2022.05.09"]
[Round "8.2"]
[White "Sindarov, Javokhir"]
[Black "Romanov, Evgeny"]
[Result "1/2-1/2"]
[ECO "C18"]
[WhiteElo "2609"]
[BlackElo "2573"]
[Annotator "TA"]
[PlyCount "92"]
[EventDate "2022.05.05"]
[EventType "swiss"]
[EventCountry "UZB"]
[SourceTitle "playchess.com"]
[Source "ChessBase"]
[SourceQuality "1"]
[TimeControl "5400+30"]

{[%evp 15,92,0,10,8,41,47,31,-5,0,-7,-6,-10,20,14,37,16,18,37,41,52,58,57,41,37,48,-29,-25,-29,-22,-33,-10,-21,-26,-29,-29,-30,-23,-235,-227,-234,-255,-230,-214,-254,-266,-256,-243,-189,-124,-156,-156,-155,-67,-66,-66,-71,-40,-40,-42,-42,-50,-86,-87,-81,-52,-149,-54,-49,-19,-20,-20,-20,-27,-27,0,0,0,0,0]} 1. e4 {[%emt 0:00:02]} e6 {[%emt 0:00:56]} 2. d4 {[%emt 0:00:24]} d5 {[%emt 0:00:08]} 3. Nc3 {[%emt 0:00:05]} Bb4 {[%emt 0:00:08]} 4. e5 {[%emt 0:00:10]} c5 {[%emt 0:00:18]} 5. a3 {[%emt 0:00:04]} Bxc3+ {[%emt 0:00:09]} 6. bxc3 {[%emt 0:00:03]} Qa5 {[%emt 0:00:11]} 7. Bd2 {[%emt 0:01:33]} Qa4 {[%emt 0:00:08]} 8. Qg4 {[%emt 0:02:56]} Kf8 $1 {[%emt 0:00:31]} 9. Qd1 {[%emt 0:01:17] 9.h4 is more fashionable. C18: French: 3 Nc3 Bb4: Main line: 7 h4 and 7 Qg4.} Nc6 {[%emt 0:00:58]} 10. Nf3 {[%emt 0:01:50]} Nge7 {[%emt 0:00:35][%cal Rc5d4]} 11. h4 {[%emt 0:02:27] White is slightly better.} cxd4 {[%emt 0:04:06]} 12. h5 {[%emt 0:06:19]} dxc3 {[%emt 0:12:04]} 13. Bxc3 {[%emt 0:00:14]} Qe4+ {[%emt 0:08:27]} 14. Be2 {[%emt 0:00:05][%mdl 1024] aiming for Rh4. White has compensation.} Nf5 {[%emt 0:00:19] Prevents Rh4.} 15. Kf1 {[%emt 0:00:24] [#]} h6 $146 {[%emt 0:02:50]} ({Predecessor:} 15... d4 16. Bb2 Nxe5 17. Nxe5 Qxe5 18. g4 Ne7 19. Bxd4 Qd5 20. Rh3 f6 21. h6 e5 22. Bc5 Kf7 23. Bxe7 Qxd1+ 24. Rxd1 Kxe7 25. Rc3 gxh6 26. Rc7+ {1-0 (26) Langheinrich,F (2210)-Gasthofer,V (2350) Germany 1998}) 16. Bd3 {[%emt 0:18:40] A strong pair of Bishops.} Qg4 {[%emt 0:01:00]} 17. a4 {[%emt 0:10:24]} b6 {[%emt 0:03:44]} 18. a5 {[%emt 0:07:44]} bxa5 {[%emt 0:02:57]} 19. Bxa5 {[%emt 0:00:36][%cal Oc2c4]} Bd7 {[%emt 0:06:49]} 20. c3 {[%emt 0:24:47]} ({White should try} 20. Bd2 $14) 20... Nxa5 $11 {[%emt 0:04:41]} 21. Rxa5 {[%emt 0:00:13]} Ke7 $1 {[%emt 0:01:15]} 22. Rh3 {[%emt 0:14:52]} Rhc8 {[%emt 0:06:46]} 23. Qa1 {[%emt 0:00:06]} Ke8 {[%emt 0:02:27]} 24. Kg1 {[%emt 0:01:26]} Rc7 {[%emt 0:03:32]} 25. Qa3 {[%emt 0:04:09]} Rac8 $40 {[%emt 0:05:02][%mdl 128] Black mounts an attack.} 26. c4 {[%emt 0:00:04]} (26. Bxf5 $11 {and White is okay.} Qxf5 27. Rxa7) 26... dxc4 $19 {[%emt 0:02:59]} 27. Bxf5 {[%emt 0:00:01]} Qxf5 {[%emt 0:00:10]} 28. Rg3 {[%emt 0:00:02]} Qd3 $1 {[%emt 0:09:24]} (28... Qxh5 $2 29. Rxg7 Qg6 30. Rxg6 fxg6 31. Qc3 $18) 29. Qb4 {[%emt 0:01:04]} Qb3 $1 {[%emt 0:00:48]} 30. Qd6 {[%emt 0:00:36]} Rc6 {[%emt 0:01:03]} 31. Qd4 {[%emt 0:00:12]} Qd3 {[%emt 0:01:01]} (31... Qb1+ 32. Kh2 Qb6 33. Rxg7 (33. Rxa7 Qxd4 34. Nxd4 Rc5 $19) 33... Qxd4 34. Nxd4) (31... c3 $1 $19 {[%cal Rc3c2] And now ...c2 would win.} 32. Rxg7 (32. Rxa7 $2 Qd5 $19) 32... Qc4 33. Rg8+ (33. Rxa7 $2 Qxd4 34. Nxd4 c2 $19) 33... Ke7 34. Rxc8 Rxc8 35. Qd6+ (35. Rxa7 $2 Qxd4 36. Nxd4 c2 $19) 35... Ke8 36. Rxa7 Qd5 $1 37. Qxd5 (37. Rxd7 $2 Qxd6 38. Rxd6 c2 $19) 37... exd5) 32. Rxg7 {[%emt 0:02:24] [#] White threatens Rg8+ and mate.} Qxd4 $1 {[%emt 0:06:48]} (32... Kf8 $2 33. Qg4 Be8 34. Rg8+ Ke7 35. Nd4 $18) 33. Nxd4 {[%emt 0:00:03]} R6c7 {[%emt 0:01:09]} ({Black should play} 33... Kf8 $17 34. Rh7 R6c7 35. Rh8+ (35. Rxh6 Kg8 $17) 35... Kg7 36. Rxc8 Bxc8) 34. Rg8+ $15 {[%emt 0:01:37]} ({Not} 34. Rh7 $2 Ke7 35. Rxh6 c3 $19) 34... Ke7 {[%emt 0:00:02]} 35. Rxc8 {[%emt 0:00:04]} Rxc8 {[%emt 0:02:27]} 36. Rxa7 {[%emt 0:00:15][%mdl 4096] Endgame KRB-KRN} c3 {[%emt 0:00:14] Threatens to win with ...c2.} 37. Nc2 {[%emt 0:00:37]} Ke8 {[%emt 0:00:50]} 38. f3 {[%emt 0:01:08]} Bb5 {[%emt 0:02:38]} 39. Kf2 {[%emt 0:00:31]} Rd8 {[%emt 0:01:22]} 40. Na3 {[%emt 0:00:26]} (40. Ke3 $15) 40... Rd2+ {[%emt 0:02:22]} (40... c2 $1 $17 {[%cal Rc2c1]} 41. Rc7 Rd2+ 42. Kg3 Bd3 43. Rc8+ Kd7) 41. Ke3 {[%emt 0:00:03]} Re2+ {[%emt 0:00:07]} (41... Bf1 $5 {[%cal Rd2e2]} 42. Rc7 Re2+ 43. Kf4 Rxg2 $15) 42. Kd4 {[%emt 0:00:44]} c2 {[%emt 0:00:18]} 43. Rc7 {[%emt 0:00:19]} Rd2+ {[%emt 0:00:21]} 44. Ke4 {[%emt 0:00:11]} Ba4 {[%emt 0:03:55]} 45. g4 {[%emt 0:00:09]} Re2+ {[%emt 0:00:29]} 46. Kd3 {[%emt 0:00:42]} Rxe5 {[%emt 0:00:56] And White is the lucky defender.  Weighted Error Value: White=0.22 (precise) /Black=0.12 (very precise)} 1/2-1/2

[Event "15th Tashkent Open Agzamov 2022"]
[Site "Tashkent"]
[Date "2022.05.09"]
[Round "8.3"]
[White "Asadli, Vugar"]
[Black "Utegaliyev, Azamat"]
[Result "1/2-1/2"]
[ECO "B40"]
[WhiteElo "2578"]
[BlackElo "2463"]
[Annotator "TA"]
[PlyCount "79"]
[EventDate "2022.05.05"]
[EventType "swiss"]
[EventCountry "UZB"]
[SourceTitle "playchess.com"]
[Source "ChessBase"]
[SourceQuality "1"]
[TimeControl "5400+30"]

{[%evp 13,79,16,0,4,10,8,15,12,25,-13,-24,-27,-8,-12,-9,-25,-23,-24,-28,-49,-44,-53,-21,-43,-43,-43,-43,-43,-43,-31,0,0,-34,-42,-35,-36,0,-20,-21,-40,0,0,0,0,0,0,0,0,0,0,7,0,0,0,0,0,0,0,0,0,0,0,0,0,0,0,0,0]} 1. e4 {[%emt 0:00:04]} c5 {[%emt 0:00:21]} 2. Nc3 {[%emt 0:00:09]} a6 {[%emt 0:02:29]} 3. Nf3 {[%emt 0:02:05]} e6 {[%emt 0:00:31]} 4. g3 {[%emt 0:01:23]} b5 {[%emt 0:00:22]} 5. Bg2 {[%emt 0:01:51]} Bb7 {[%emt 0:00:13]} 6. d3 {[%emt 0:00:27]} Be7 {[%emt 0:02:16]} 7. O-O {[%emt 0:00:30]} d6 {[%emt 0:00:03]} 8. e5 {[%emt 0:07:05] is the legacy move (8.Re1). B40: Sicilian: 2...e6, Unusual lines.} dxe5 $1 {[%emt 0:12:04]} 9. Nxe5 {[%emt 0:00:14]} Bxg2 {[%emt 0:00:05]} 10. Kxg2 {[%emt 0:00:07]} Nd7 {[%emt 0:00:17]} 11. Nc6 {[%emt 0:09:33]} Qb6 {[%emt 0:05:03]} 12. Nxe7 {[%emt 0:00:12]} Nxe7 {[%emt 0:00:05][%cal Bg8e7,Be7f5,Bf5d4][%mdl 32] [#]} 13. b3 $146 {[%emt 0:00:12]} ({Predecessor:} 13. f4 Nf5 14. Qf3 O-O 15. Qf2 Rac8 16. Bd2 Qc6+ 17. Kg1 Nf6 18. Rae1 Nd4 19. Rc1 {0-1 (57) Nuber,K (2258)-Weiss,C (2401) Bayern 2013}) 13... Qc6+ {[%emt 0:07:26]} (13... O-O {keeps more tension.} 14. Bb2 f5 15. a4 Rae8) 14. f3 {[%emt 0:00:12]} O-O {[%emt 0:02:27]} 15. Bb2 {[%emt 0:01:08]} Rac8 {[%emt 0:04:37]} 16. a4 {[%emt 0:01:21]} Nf5 {[%emt 0:01:15] [#] ...Ne3+ is the strong threat.} 17. Qd2 {[%emt 0:00:16] Prevents Ne3+.} b4 {[%emt 0:13:26]} 18. Ne4 {[%emt 0:02:49][%cal Bc3e4,Be4d2,Bd2c4][%mdl 32]} Nd4 {[%emt 0:01:33] Pair of Knights!} 19. Qf2 {[%emt 0:06:07]} e5 {[%emt 0:00:38]} 20. Rac1 {[%emt 0:03:10]} f5 {[%emt 0:03:20]} 21. Nd2 {[%emt 0:03:44]} Qd5 {[%emt 0:03:29]} 22. Kg1 {[%emt 0:01:02]} Rce8 {[%emt 0:03:34]} 23. Qg2 {[%emt 0:00:36]} Re6 {[%emt 0:02:09]} 24. Nc4 {[%emt 0:02:10]} Qc6 {[%emt 0:03:08]} 25. Rce1 {[%emt 0:01:12]} (25. f4 $5 {[%cal Rf4e5]}) 25... Rfe8 {[%emt 0:00:16]} 26. Rf2 {[%emt 0:02:32]} h5 {[%emt 0:01:33]} 27. Bxd4 {[%emt 0:03:01] The position is equal.} cxd4 {[%emt 0:01:46]} 28. Qh3 {[%emt 0:00:47]} g6 {[%emt 0:05:37]} (28... e4 {is interesting.} 29. fxe4 fxe4 30. Qxh5 g6) 29. g4 {[%emt 0:03:07]} hxg4 {[%emt 0:00:13]} 30. fxg4 {[%emt 0:00:04]} fxg4 {[%emt 0:00:03]} 31. Qxg4 {[%emt 0:01:25]} e4 {[%emt 0:00:05]} 32. Rxe4 {[%emt 0:01:44]} Rxe4 {[%emt 0:00:05]} 33. dxe4 {[%emt 0:00:03]} Rxe4 {[%emt 0:00:03]} 34. Qf3 {[%emt 0:01:09]} Re1+ {[%emt 0:00:47]} 35. Kg2 $1 {[%emt 0:02:15]} Qxf3+ {[%emt 0:00:07]} 36. Kxf3 {[%emt 0:00:08]} Nc5 {[%emt 0:02:16]} 37. Re2 {[%emt 0:01:59]} Rf1+ {[%emt 0:02:00]} 38. Rf2 {[%emt 0:00:11]} Re1 {[%emt 0:00:56]} 39. Re2 {[%emt 0:00:04]} Rf1+ {[%emt 0:00:33]} 40. Rf2 {[%emt 0:00:24] Weighted Error Value: White=0.05 (flawless) /Black=0.05 (flawless)} 1/2-1/2

[Event "15th Tashkent Open Agzamov 2022"]
[Site "Tashkent"]
[Date "2022.05.09"]
[Round "8.4"]
[White "Nigmatov, Ortik"]
[Black "Suleymenov, Alisher"]
[Result "0-1"]
[ECO "B99"]
[WhiteElo "2463"]
[BlackElo "2445"]
[Annotator "TA"]
[PlyCount "96"]
[EventDate "2022.05.05"]
[EventType "swiss"]
[EventCountry "UZB"]
[SourceTitle "playchess.com"]
[Source "ChessBase"]
[SourceQuality "1"]
[TimeControl "5400+30"]

{[%evp 24,96,6,7,12,28,17,27,20,24,29,29,25,22,20,21,20,19,28,3,0,0,41,50,28,0,33,7,9,0,15,-37,-30,-29,-8,-73,-81,-87,-88,-104,-98,-120,-84,-167,-45,-53,-35,-64,-48,-55,-54,-85,0,-225,-64,-197,0,0,0,0,90,0,0,0,0,0,177,176,162,0,0,-254,-143,-5014,-1717]} 1. e4 {[%emt 0:00:03]} c5 {[%emt 0:00:06]} 2. Nf3 {[%emt 0:00:06]} d6 {[%emt 0:00:04]} 3. d4 {[%emt 0:00:09]} cxd4 {[%emt 0:00:06]} 4. Nxd4 {[%emt 0:00:03]} Nf6 {[%emt 0:00:06]} 5. Nc3 {[%emt 0:00:07]} a6 {[%emt 0:00:04]} 6. Bg5 {[%emt 0:00:27]} e6 {[%emt 0:00:07]} 7. f4 {[%emt 0:00:17]} Be7 {[%emt 0:00:06]} 8. Qf3 {[%emt 0:00:00]} Qc7 {[%emt 0:00:04]} 9. O-O-O {[%emt 0:00:22]} Nbd7 {[%emt 0:00:04]} 10. g4 {[%emt 0:00:11][%cal Bg2g4,Bg4g5][%mdl 32]} b5 {[%emt 0:00:04]} 11. Bxf6 {[%emt 0:01:06]} Nxf6 {[%emt 0:00:08]} 12. g5 {[%emt 0:00:05]} Nd7 {[%emt 0:00:05]} 13. f5 {[%emt 0:00:13][%cal Bf4f5,Bf5f6][%mdl 32]} O-O {[%emt 0:00:10] Hoping for ...b4. B99: Sicilian Najdorf: 6 Bg5 e6 7 f4 Be7 8 Qf3 Qc7 9 0-0-0 Nbd7.} 14. Rg1 {[%emt 0:03:29]} (14. f6 gxf6 15. gxf6 Nxf6 $17) 14... b4 $1 {[%emt 0:03:46]} 15. Nce2 {[%emt 0:01:19][%cal Bc3e2,Be2d4,Bd4f5][%mdl 32]} e5 $1 {[%emt 0:00:10] White has an edge.} 16. f6 $1 {[%emt 0:00:09]} exd4 {[%emt 0:00:05]} 17. fxe7 {[%emt 0:00:05]} Re8 {[%emt 0:00:04]} 18. Nxd4 {[%emt 0:00:08]} (18. Rxd4 Ne5 19. Qe3 a5 $15) 18... Ne5 {[%emt 0:00:08]} 19. Qf4 {[%emt 0:10:58]} Be6 {[%emt 0:00:07]} 20. Kb1 {[%emt 0:03:26]} Rxe7 {[%emt 0:11:23]} 21. Nf5 {[%emt 0:00:55]} Rd7 {[%emt 0:04:04]} 22. Rg2 {[%emt 0:10:01] [#]} a5 $146 {[%emt 0:17:43]} ({Predecessor:} 22... Rad8 23. Ne3 d5 24. exd5 Bxd5 25. Nxd5 Rxd5 26. Rgd2 Rxd2 27. Rxd2 Rxd2 28. Qxd2 a5 {½-½ (49) Kosteniuk,A (2439)-Ju,W (2543) Beijing 2011}) 23. Bb5 {[%emt 0:06:37]} Rdd8 {[%emt 0:01:28]} 24. Ba4 {[%emt 0:00:28]} Nc4 {[%emt 0:20:02]} 25. Nd4 {[%emt 0:08:27][%cal Og5g6]} Bd7 $1 {[%emt 0:15:35]} 26. Bxd7 {[%emt 0:01:28]} Rxd7 {[%emt 0:00:07]} 27. Rg3 {[%emt 0:11:12]} (27. h4 $11) 27... Re8 $15 {[%emt 0:07:12]} 28. Nf5 {[%emt 0:13:14]} Qb7 {[%emt 0:05:03]} 29. Rd4 {[%emt 0:03:41] [#]} (29. Rg4 $11 {keeps the balance.}) 29... Rxe4 $1 $17 {[%emt 0:02:43] ( -> ...Re1+)} 30. Qf2 {[%emt 0:04:26] Prevents Re1+.} (30. Nh6+ $2 gxh6 31. Rxe4 (31. gxh6+ $2 Kf8 $19) 31... Qxe4 $3 {[%mdl 512]} 32. gxh6+ Kf8 33. Qxe4 (33. Rg8+ $2 Kxg8 34. Qc1 Ne3 $19) 33... Nd2+ 34. Kc1 Nxe4 $19) (30. Rxe4 Qxe4) 30... d5 {[%emt 0:10:03]} 31. Rgd3 {[%emt 0:02:47]} Re8 $40 {[%emt 0:01:08][%mdl 128] Black has strong attack.} 32. Rd1 {[%emt 0:02:22]} a4 {[%emt 0:01:19][%cal Ba5a4,Ba4b3,Bb3a2][%mdl 32]} 33. Rf4 {[%emt 0:02:33]} (33. Re1 $17 Rdd8 34. Rdd1) 33... b3 {[%emt 0:01:20]} (33... Qc7 $19 {...Re5 is the strong threat.} 34. Qd4 Re5) 34. cxb3 $1 $15 {[%emt 0:00:12]} axb3 {[%emt 0:00:03][%cal Od5d4]} 35. Qd4 $1 {[%emt 0:00:49][%csl Gf5][%cal Rd4g7]} bxa2+ {[%emt 0:01:33]} 36. Ka1 {[%emt 0:00:01][%csl Gf5][%cal Rd4g7]} Re5 {[%emt 0:00:49] Threatens to win with ...Qb3.} 37. Qc3 {[%emt 0:00:17] Inhibits Qb3.} Qb8 {[%emt 0:01:02]} (37... Qb6 $1 $17) 38. b3 $2 {[%emt 0:01:02] [#]} (38. Rxc4 $11 dxc4 39. Rxd7 Rxf5 40. Qxc4) 38... Nb6 $2 {[%emt 0:00:27]} (38... Rb7 $1 $19 {[%cal Rb7b3]} 39. Rf3 Rb4) 39. Qd4 {[%emt 0:00:42]} ({White should play} 39. Rdf1 $15) 39... Rd8 $2 {[%emt 0:00:32]} ({Better is} 39... Rb7 $1 $19 {[%cal Ob6c4] White must now prevent ...Nc4!} 40. Qg1 Kh8) 40. Nh6+ $1 $11 {[%emt 0:06:14]} gxh6 {[%emt 0:00:04]} 41. gxh6 {[%emt 0:00:02] And now Qg1+ would win.} Rde8 {[%emt 0:00:51]} (41... Nd7 $11 42. Qg1+ Kf8 43. Qg7+ Ke7 44. Rxf7+ Kd6 45. Rxd7+ Rxd7 46. Qf6+ Re6 47. Qf4+ Re5 48. Qf6+ Re6 49. Qf4+ Re5 50. Qf6+) 42. Qg1+ {[%emt 0:08:14]} (42. Rg1+ $1 $16 Kh8 43. Rxf7) 42... Kf8 {[%emt 0:00:13]} 43. Qg7+ {[%emt 0:00:45]} Ke7 {[%emt 0:00:01]} 44. Rxf7+ {[%emt 0:00:11]} Kd8 $2 {[%emt 0:01:25] [#]} (44... Kd6 $1 $11 {and Black is okay.} 45. Rc1 (45. Rb7 Qd8 $11) 45... R8e7) 45. Qf6+ $1 $18 {[%emt 0:01:52][%mdl 1024] White has strong compensation.} R5e7 {[%emt 0:00:16]} 46. Re1 $2 {[%emt 0:00:21]} (46. Rxe7 $18 Rxe7 47. Re1) 46... Nd7 {[%emt 0:00:36]} 47. Qg5 {[%emt 0:00:56][%mdl 8192] [#]} (47. Qxe7+ $11 {and White has nothing to worry.} Rxe7 48. Rexe7 Qxb3 49. Rxd7+ Kc8 50. Rc7+ Kb8 51. Rc1) 47... Qb4 {[%emt 0:00:36]} ({Black should try} 47... Qxb3 $1 $19 {Strongly threatening ...Qc3+.} 48. Rfxe7 Qc3+ 49. Kxa2 Qc4+ 50. Kb1 (50. Ka1 $2 Qa4+ 51. Kb2 Qb4+ 52. Ka2 Rxe7 $19) 50... Qb4+ 51. Ka2 Rxe7 52. Rxe7 Qxe7 53. Qg8+ Kc7 54. Qxd5 Nc5) 48. Re3 {[%emt 0:01:18][%mdl 8192]} (48. Rexe7 $17 Rxe7 49. Kxa2) 48... Qd4+ {[%emt 0:00:19] What a bad dream for White.  Weighted Error Value: White=0.55/Black=0.38} 0-1